[Event "45th FIDE Olympiad 2024"]
[Site "Budapest"]
[Date "2024.09.14"]
[Round "4.20"]
[White "Oratile, Kgotlane"]
[Black "Alabdaljader, Mohammed"]
[Result "1-0"]
[ECO "C44"]
[WhiteElo "1975"]
[BlackElo "1677"]
[PlyCount "79"]
[EventDate "2024.09.05"]
[EventType "team-tourn"]
[EventCountry "HUN"]
[WhiteTeam "Botswana"]
[BlackTeam "Kuwait"]
[WhiteTeamCountry "BOT"]
[BlackTeamCountry "KUW"]
[TimeControl "40/5400+30:1800+30"]

1. e4 e5 2. Nf3 Nc6 3. d3 Nf6 4. g3 d6 5. Bg2 Be7 6. O-O Bg4 7. h3 Bh5 8. c3 Qd7 9. Kh2 h6 10. Re1 O-O-O 11. Qa4 Kb8 12. b4 Bxf3 13. Bxf3 Nd4 14. Qd1 Nxf3+ 15. Qxf3 g5 16. Kg2 g4 17. hxg4 Nxg4 18. Qf5 Qxf5 19. exf5 h5 20. Rh1 h4 21. f3 h3+ 22. Rxh3 Rxh3 23. Kxh3 Nf2+ 24. Kg2 Nxd3 25. Bd2 d5 26. Na3 Nb2 27. Rh1 a5 28. Rh7 axb4 29. cxb4 Rg8 30. Rxf7 Bd6 31. Nb5 Nc4 32. Bh6 d4 33. f6 d3 34. Kf2 d2 35. Ke2 Rxg3 36. Rg7 e4 37. fxe4 d1=Q+ 38. Kxd1 Rd3+ 39. Ke2 Rd2+ 40. Bxd2 1-0

[Event "45th FIDE Olympiad 2024"]
[Site "Budapest"]
[Date "2024.09.14"]
[Round "4.21"]
[White "Duda, Jan-Krzysztof"]
[Black "Stremavicius, Titas"]
[Result "1-0"]
[ECO "B45"]
[WhiteElo "2732"]
[BlackElo "2527"]
[Annotator "TA"]
[PlyCount "93"]
[EventDate "2024.09.05"]
[EventType "team-tourn"]
[EventCountry "HUN"]
[SourceTitle "playchess.com"]
[Source "ChessBase"]
[SourceQuality "1"]
[WhiteTeam "Poland"]
[BlackTeam "Lithuania"]
[WhiteTeamCountry "POL"]
[BlackTeamCountry "LTU"]
[TimeControl "40/5400+30:1800+30"]

{[%evp 12,93,0,0,22,10,0,12,18,9,2,0,5,-37,-31,-50,-72,-64,-55,-52,-17,-141,-152,-129,-158,-121,19,21,33,42,53,71,80,57,52,56,54,59,98,91,170,167,181,189,174,175,224,203,216,220,340,341,619,138,136,141,136,136,214,214,228,82,104,106,256,256,256,258,290,290,290,290,284,282,297,297,294,276,281,281,275,281,288,283]} 1. e4 {[%emt 0:00:05]} c5 {[%emt 0:00:10]} 2. Nf3 {[%emt 0:00:07]} e6 {[%emt 0:00:06]} 3. d4 {[%emt 0:00:23]} cxd4 {[%emt 0:00:08]} 4. Nxd4 {[%emt 0:00:06]} Nf6 {[%emt 0:00:08]} 5. Nc3 {[%emt 0:00:06]} Nc6 {[%emt 0:00:06]} 6. a3 {[%emt 0:00:57]} Be7 {[%emt 0:00:38]} 7. Be3 {[%emt 0:00:32]} d6 {[%emt 0:02:12]} 8. Qe2 {[%emt 0:14:01]} e5 {[%emt 0:20:33]} 9. Nb3 {[%emt 0:00:58]} O-O {[%emt 0:00:12] The position is equal.} 10. O-O-O {[%emt 0:02:05]} a6 {[%emt 0:01:42]} 11. h3 {[%emt 0:03:49]} b5 {[%emt 0:02:17]} 12. f4 {[%emt 0:02:17]} Be6 {[%emt 0:21:03]} 13. g4 {[%emt 0:04:02]} b4 {[%emt 0:10:41]} 14. axb4 {[%emt 0:02:03]} exf4 {[%emt 0:00:00]} 15. Bxf4 {[%emt 0:00:09]} Nxb4 {[%emt 0:00:04] ...Rb8 is the strong threat.} 16. Bg2 {[%emt 0:11:25]} (16. g5 $1 $11 Nd7 17. Kb1) 16... Rc8 $1 $17 {[%emt 0:04:38]} 17. Kb1 {[%emt 0:13:00]} Qb6 $1 {[%emt 0:03:58][%cal Ob4c2] Threatens to win with ...Nxc2!} 18. Qe3 {[%emt 0:03:04] [#]} Qxe3 {[%emt 0:14:23]} ({Black should play} 18... Qb7 $1 $17 {[%cal Ob4c2] White must now prevent ...Nxc2!} 19. Nd4 Rb8) 19. Bxe3 $11 {[%emt 0:01:07]} Nd7 {[%emt 0:04:18]} 20. Nd4 {[%emt 0:04:53]} Ne5 {[%emt 0:00:07]} 21. Nf5 $36 {[%emt 0:02:07][%mdl 2048] White has strong initiative.} Rfe8 {[%emt 0:04:14]} 22. Bf4 {[%emt 0:02:12]} (22. Nxd6 Bxd6 23. Rxd6 Nc4 $17) (22. Nxe7+ Rxe7 23. Bf1 (23. Rxd6 Nc4 $15) 23... Bc4 $14) (22. Bf1 {simplifies} Bxf5 23. exf5 Nc4 24. Bxc4 Rxc4 25. Rhf1) 22... Nc4 {[%emt 0:02:51]} 23. Nxe7+ {[%emt 0:08:06]} (23. g5 {keeps more tension.} Bf8 24. Bf1 d5 25. Bxc4 dxc4 26. h4) 23... Rxe7 {[%emt 0:00:02]} 24. Bxd6 {[%emt 0:00:12]} Nxd6 {[%emt 0:00:06]} 25. Rxd6 {[%emt 0:00:06]} h5 {[%emt 0:00:42]} 26. gxh5 $18 {[%emt 0:01:04]} Rc5 {[%emt 0:00:59]} 27. Bf3 {[%emt 0:00:51]} Kh7 {[%emt 0:00:33]} 28. h4 {[%emt 0:04:24]} f6 {[%emt 0:03:11]} (28... a5 {keeps fighting.} 29. Rb6 g6 30. hxg6+ fxg6) 29. Rhd1 {[%emt 0:01:40]} a5 {[%emt 0:01:01]} 30. Rb6 {[%emt 0:01:58]} Bf7 {[%emt 0:03:37] [#]} (30... Re8 $142 31. Rb7 Rf8) 31. Nd5 $1 {[%emt 0:05:09]} Re5 {[%emt 0:00:25]} (31... Ra7 32. Rb8 Nxd5) 32. Rb7 $2 {[%emt 0:02:07]} (32. Nxf6+ $18 {and the rest is easy.} gxf6 33. Rb7) 32... Bxd5 $16 {[%emt 0:00:50]} 33. exd5 {[%emt 0:00:12]} Nxd5 {[%emt 0:00:03]} 34. Bxd5 {[%emt 0:05:40]} Rexd5 {[%emt 0:00:25][%mdl 4096] Endgame. KRR-KRR} (34... Rcxd5 $16 {was worth a try.} 35. Rg1 Kh6 36. Rgxg7 (36. Rbxg7 Re1+ 37. Ka2 Rxg1 $11) 36... Kxh5) 35. Rg1 $18 {[%emt 0:00:05]} Kh6 {[%emt 0:00:33]} 36. Rg2 {[%emt 0:01:27] Prevents Rd2} ({Don't do} 36. Rgxg7 $6 Kxh5 37. Rg1 Kh6) (36. Rbxg7 $18 {is the precise move to win. Hoping for R7g6+.} Rd1+ 37. Rxd1 Kxg7 38. Rd7+ Kh6 39. Rd6 Kxh5 40. Rxf6 Kxh4 41. Rg6) 36... Rc4 {[%emt 0:00:59]} 37. Rgxg7 {[%emt 0:03:21][%csl Gb7][%cal Rg7h7]} Rxh4 {[%emt 0:00:34]} (37... Kxh5 $16 38. Rbf7 Rf4) 38. Rg6+ {[%emt 0:00:34] White has a decisive advantage.} Kxh5 {[%emt 0:00:01]} 39. Rxf6 {[%emt 0:00:06]} Kg5 {[%emt 0:00:56]} 40. Rf1 {[%emt 0:00:38] Against Rd1+} Kg6 {[%emt 0:00:14]} 41. Ka2 {[%emt 0:31:06]} Rc5 {[%emt 0:06:47]} 42. c3 {[%emt 0:00:00]} Ra4+ {[%emt 0:01:42]} 43. Kb3 {[%emt 0:00:00]} Rg4 {[%emt 0:00:29]} 44. Rb8 {[%emt 0:00:00]} Kg7 {[%emt 0:00:12] Dodges Rg8+} 45. Rb6 {[%emt 0:00:00]} Re4 {[%emt 0:00:10]} 46. Ka3 {[%emt 0:00:00]} Rd5 {[%emt 0:00:32]} 47. Rbf6 {[%emt 0:00:00] White used his chance.   Weighted Error Value: White=0.22 (precise) /Black=0.35.  Missed win:     	White=1     	---        Mistake:       	White=2     	Black=7      Inaccurate:     	White=1     	Black=1      OK:         	White=18    	Black=15     Best:        	White=4     	Black=2      Strong:       	White=1     	Black=1} 1-0

[Event "45th FIDE Olympiad 2024"]
[Site "Budapest"]
[Date "2024.09.14"]
[Round "4.21"]
[White "Mafaaz Khalid"]
[Black "Tran, Tuan An"]
[Result "1/2-1/2"]
[ECO "D41"]
[WhiteElo "2069"]
[BlackElo "1916"]
[PlyCount "91"]
[EventDate "2024.09.05"]
[EventType "team-tourn"]
[EventCountry "HUN"]
[WhiteTeam "Pakistan"]
[BlackTeam "Guam"]
[WhiteTeamCountry "PAK"]
[BlackTeamCountry "GMA"]
[TimeControl "40/5400+30:1800+30"]

1. d4 Nf6 2. c4 e6 3. Nc3 d5 4. Nf3 c5 5. cxd5 cxd4 6. Qxd4 exd5 7. e4 dxe4 8. Qxd8+ Kxd8 9. Ng5 Be6 10. Nxe6+ fxe6 11. Bc4 Nc6 12. Bg5 Ke7 13. Nxe4 h6 14. Nxf6 hxg5 15. Ng4 Rd8 16. Rd1 Rxd1+ 17. Kxd1 Na5 18. Bd3 Kd6 19. Ke2 Be7 20. Rd1 Bf6 21. Be4+ Ke7 22. b4 Nc6 23. Bxc6 bxc6 24. Rd3 Rb8 25. Rb3 Rb5 26. a4 Rb8 27. Kd3 Rd8+ 28. Kc2 Rd4 29. h3 a5 30. b5 cxb5 31. axb5 a4 32. Rb1 Kd7 33. Nxf6+ gxf6 34. Kc3 Rf4 35. f3 Kc7 36. Rb4 Rf5 37. b6+ Kb7 38. Kb2 Rd5 39. Kc3 a3 40. Ra4 Kxb6 41. Rxa3 Kc7 42. Ra4 Kd6 43. f4 gxf4 44. Rxf4 Ke7 45. Rf1 Kf7 46. g3 1/2-1/2

[Event "45th FIDE Olympiad 2024"]
[Site "Budapest"]
[Date "2024.09.14"]
[Round "4.22"]
[White "Pultinevicius, Paulius"]
[Black "Wojtaszek, Radoslaw"]
[Result "1/2-1/2"]
[ECO "E23"]
[WhiteElo "2587"]
[BlackElo "2681"]
[Annotator "TA"]
[PlyCount "68"]
[EventDate "2024.09.05"]
[EventType "team-tourn"]
[EventCountry "HUN"]
[SourceTitle "playchess.com"]
[Source "ChessBase"]
[SourceQuality "1"]
[WhiteTeam "Lithuania"]
[BlackTeam "Poland"]
[WhiteTeamCountry "LTU"]
[BlackTeamCountry "POL"]
[TimeControl "40/5400+30:1800+30"]

{[%evp 15,68,0,0,-7,0,0,0,0,14,6,0,0,16,24,47,45,33,37,24,22,45,29,25,28,81,35,38,27,26,74,64,0,0,0,73,95,158,85,86,79,96,68,85,68,71,0,0,0,0,0,0,0,0,0,0]} 1. d4 {[%emt 0:00:03]} Nf6 {[%emt 0:00:05][%cal Bg8f6,Bf6e4,Be4d2][%mdl 32]} 2. c4 {[%emt 0:00:03]} e6 {[%emt 0:00:05]} 3. Nc3 {[%emt 0:00:04]} Bb4 {[%emt 0:00:05]} 4. Qb3 {[%emt 0:00:04]} c5 {[%emt 0:02:22]} 5. dxc5 {[%emt 0:00:12]} Nc6 {[%emt 0:01:42]} 6. Nf3 {[%emt 0:00:06]} Ne4 {[%emt 0:02:21]} 7. Bd2 {[%emt 0:00:07]} Nxd2 {[%emt 0:00:19]} 8. Nxd2 {[%emt 0:00:05]} Bxc5 {[%emt 0:00:05]} 9. g3 {[%emt 0:00:07]} b6 {[%emt 0:02:31]} 10. Bg2 {[%emt 0:00:08]} Bb7 {[%emt 0:01:01] And now ...Nd4 would win.} 11. O-O {[%emt 0:00:07]} Rc8 {[%emt 0:08:24]} 12. Rac1 {[%emt 0:05:07][%cal Ba1c1,Bc1d1,Bd1d2][%mdl 32]} O-O {[%emt 0:04:45]} 13. Qa4 {[%emt 0:01:49]} f5 {[%emt 0:10:23]} 14. Nb3 {[%emt 0:10:29]} a6 {[%emt 0:05:01]} 15. Nxc5 {[%emt 0:35:06]} bxc5 {[%emt 0:00:29]} 16. Rcd1 {[%emt 0:00:26]} Qc7 {[%emt 0:02:04]} 17. f4 {[%emt 0:02:31][%cal Bf2f4,Bf4e5][%mdl 32]} Nd4 {[%emt 0:10:23]} 18. Bxb7 {[%emt 0:04:32]} Qxb7 {[%emt 0:00:02]} 19. Rd2 {[%emt 0:00:08]} e5 {[%emt 0:08:21]} 20. fxe5 {[%emt 0:08:01]} Rce8 {[%emt 0:01:44]} 21. Qa5 {[%emt 0:00:23]} Qc6 {[%emt 0:13:14]} (21... Rxe5 $6 22. Rxd4 cxd4 23. Qxe5 $16) 22. Nd5 {[%emt 0:03:00]} f4 {[%emt 0:00:06]} (22... Rxe5 $2 23. e3 $18) 23. gxf4 {[%emt 0:10:13]} ({Much worse is} 23. Rxf4 Rxf4 24. Nxf4 (24. gxf4 Qg6+ 25. Kf1 Qb1+ 26. Kf2 Qh1 $11) 24... Qe4 $11) ({White should try} 23. Qa3 $14) 23... Qg6+ $11 {[%emt 0:07:56]} 24. Kf2 {[%emt 0:00:06]} Rxe5 {[%emt 0:11:22]} (24... Qg4 $1 $11 {remains equal.} 25. Qxc5 (25. Qxa6 $2 {loses.} Rxe5 26. e3 Nf3 $19) 25... Ne6) 25. Qxc5 $16 {[%emt 0:01:50]} Nc6 {[%emt 0:00:02] [#]} (25... Nc2 $142 26. Rg1 Qh6 27. Rxc2 Qh4+ 28. Kg2 Rxf4) 26. Qxf8+ {[%emt 0:08:34]} Kxf8 {[%emt 0:00:01][%cal Bg8f8,Bf8e8,Be8d8][%mdl 32]} 27. fxe5 {[%emt 0:00:08]} Qe4 {[%emt 0:02:01][%cal Of8g8]} 28. b3 {[%emt 0:08:08]} Nxe5 {[%emt 0:01:03]} 29. Kg1+ {[%emt 0:00:46]} Ke8 {[%emt 0:00:02]} 30. Nc7+ {[%emt 0:01:30]} (30. Rf4 $16 Qb1+ 31. Kf2) 30... Kd8 $11 {[%emt 0:01:13] The position is equal.} 31. Nd5 {[%emt 0:00:04][%cal Rf1f8] Against Qe3+} Qg4+ {[%emt 0:00:44]} 32. Kh1 {[%emt 0:00:05][%cal Rf1f8]} Qe4+ {[%emt 0:00:05]} 33. Kg1 {[%emt 0:00:02][%cal Rf1f8]} Qg4+ {[%emt 0:00:04]} 34. Kh1 {[%emt 0:00:06][%cal Rf1f8]} Qe4+ {[%emt 0:00:05] Weighted Error Value: White=0.17 (very precise) /Black=0.13 (very precise) .  Mistake:       	White=3     	Black=2      OK:         	White=13    	Black=10     Best:        	White=4     	Black=2} 1/2-1/2

[Event "45th FIDE Olympiad 2024"]
[Site "Budapest"]
[Date "2024.09.14"]
[Round "4.22"]
[White "Mafnas, Peter"]
[Black "Amer Karim"]
[Result "0-1"]
[ECO "D02"]
[WhiteElo "1886"]
[BlackElo "2081"]
[PlyCount "112"]
[EventDate "2024.09.05"]
[EventType "team-tourn"]
[EventCountry "HUN"]
[WhiteTeam "Guam"]
[BlackTeam "Pakistan"]
[WhiteTeamCountry "GMA"]
[BlackTeamCountry "PAK"]
[TimeControl "40/5400+30:1800+30"]

1. Nf3 Nf6 2. g3 g6 3. Bg2 Bg7 4. O-O O-O 5. d4 d5 6. e3 Bf5 7. Nbd2 c5 8. b3 Nc6 9. a3 Rc8 10. Bb2 Ne4 11. c3 cxd4 12. cxd4 Na5 13. Rc1 Bg4 14. Rxc8 Qxc8 15. Qc1 Bxf3 16. Bxf3 Nxd2 17. Qxd2 Nxb3 18. Qb4 Qc4 19. Bc3 Qxb4 20. Bxb4 a5 21. Rb1 axb4 22. Rxb3 bxa3 23. Rxa3 e6 24. Rb3 Rb8 25. Rb6 Bf6 26. Be2 Bd8 27. Rb3 Ba5 28. Rb2 Kf8 29. Bb5 Rc8 30. Kf1 b6 31. Ke2 Rc1 32. Bd3 Ke7 33. Rc2 Re1+ 34. Kf3 Kd6 35. Bb5 Rb1 36. Rc6+ Ke7 37. Rc7+ Kf8 38. Bd3 Rb2 39. Rc2 Rb3 40. Ba6 Bc3 41. Ke2 Ke7 42. Kd3 Bb4+ 43. Ke2 Bd6 44. Bd3 b5 45. Kd2 h5 46. Rc6 b4 47. Ra6 Rb2+ 48. Ke1 e5 49. dxe5 Bxe5 50. Ra5 Bc3+ 51. Kf1 d4 52. e4 b3 53. Rb5 Rd2 54. Bc4 b2 55. Ba2 Rd1+ 56. Ke2 Ra1 {0-} 0-1

[Event "45th FIDE Olympiad 2024"]
[Site "Budapest"]
[Date "2024.09.14"]
[Round "4.23"]
[White "Piorun, Kacper"]
[Black "Kazakouski, Valery"]
[Result "1/2-1/2"]
[ECO "D11"]
[WhiteElo "2599"]
[BlackElo "2577"]
[Annotator "TA"]
[PlyCount "87"]
[EventDate "2024.09.05"]
[EventType "team-tourn"]
[EventCountry "HUN"]
[SourceTitle "playchess.com"]
[Source "ChessBase"]
[SourceQuality "1"]
[WhiteTeam "Poland"]
[BlackTeam "Lithuania"]
[WhiteTeamCountry "POL"]
[BlackTeamCountry "LTU"]
[TimeControl "40/5400+30:1800+30"]

{[%evp 33,87,0,11,0,0,0,-8,-9,0,-13,0,0,0,0,0,0,23,27,25,34,21,15,21,32,33,0,0,0,0,0,0,0,0,0,0,0,0,0,16,14,32,19,20,3,7,0,0,0,2417,992,2524,3270,1070,0,0,0]} 1. d4 {[%emt 0:00:07]} d5 {[%emt 0:00:33]} 2. c4 {[%emt 0:00:06]} c6 {[%emt 0:00:07]} 3. Nf3 {[%emt 0:00:26]} Nf6 {[%emt 0:00:50]} 4. e3 {[%emt 0:00:28]} Bg4 {[%emt 0:00:56]} 5. h3 {[%emt 0:02:22]} Bxf3 {[%emt 0:00:54]} 6. Qxf3 {[%emt 0:00:06]} e6 {[%emt 0:00:11]} 7. Bd3 {[%emt 0:02:40] D11: Slav Defence: 3 Nf3 sidelines and 3...Nf6 4 e3 Bg4.} Bb4+ {[%emt 0:01:45]} 8. Nc3 {[%emt 0:03:17]} O-O {[%emt 0:02:48]} 9. O-O {[%emt 0:05:14]} Nbd7 {[%emt 0:02:44]} 10. Rd1 {[%emt 0:03:16]} Nb6 {[%emt 0:06:30]} 11. cxd5 {[%emt 0:05:05]} cxd5 {[%emt 0:03:23]} 12. Bd2 {[%emt 0:00:24]} Rc8 {[%emt 0:02:34]} 13. Qe2 {[%emt 0:00:23]} a6 $146 {[%emt 0:06:07]} ({Predecessor:} 13... Re8 14. Rac1 a6 15. Be1 Qe7 16. a3 Bd6 17. f4 Qd7 18. Rc2 Rc7 19. Bh4 Be7 {½-½ Pogonina,N (2469)-Shmavonyan,A (2103) Yerevan Asrian Memorial 11th 2018 (4)}) 14. Be1 {[%emt 0:07:24]} Qe7 {[%emt 0:02:05]} 15. a3 {[%emt 0:05:28]} Bd6 {[%emt 0:03:10]} 16. a4 {[%emt 0:00:58]} g6 {[%emt 0:09:39]} 17. a5 {[%emt 0:04:01]} Nbd7 {[%emt 0:01:01]} 18. Qc2 {[%emt 0:00:58]} Nb8 {[%emt 0:07:29]} 19. Qb3 {[%emt 0:00:40]} Nc6 {[%emt 0:02:22]} 20. Na4 {[%emt 0:01:14]} Rc7 {[%emt 0:00:41]} 21. Nb6 {[%emt 0:10:45]} Rd8 {[%emt 0:06:22]} 22. Rac1 {[%emt 0:02:09]} e5 {[%emt 0:06:58]} 23. Qa4 {[%emt 0:05:41]} Qe6 {[%emt 0:06:20]} 24. Rc2 {[%emt 0:18:08]} Re7 {[%emt 0:08:00]} 25. Bxa6 {[%emt 0:06:10]} Nxd4 {[%emt 0:01:27]} 26. exd4 {[%emt 0:00:06]} bxa6 {[%emt 0:00:13]} 27. Bb4 {[%emt 0:02:21]} Bxb4 {[%emt 0:07:31]} 28. Qxb4 {[%emt 0:00:02]} e4 {[%emt 0:02:20]} 29. Rc6 {[%emt 0:01:28]} Qxc6 {[%emt 0:00:28]} 30. Qxe7 {[%emt 0:00:05]} Rd6 {[%emt 0:02:56]} 31. b4 {[%emt 0:05:14]} Kg7 {[%emt 0:01:59]} 32. Kh2 {[%emt 0:01:27]} Re6 {[%emt 0:02:04]} 33. Qc5 {[%emt 0:00:05]} Qe8 {[%emt 0:00:05]} 34. b5 {[%emt 0:03:46]} e3 {[%emt 0:01:14]} 35. fxe3 {[%emt 0:00:16]} (35. Nxd5 Nxd5 (35... exf2 36. Nc7 $11) (35... e2 36. Re1 $11) 36. Qxd5 exf2 $15) (35. bxa6 $2 Qb8+ (35... exf2 $2 36. Qc3 $19) 36. g3 (36. Kg1 exf2+ 37. Kxf2 Qf4+ 38. Kg1 Re2 39. Kh1 Qg3) 36... exf2 $19) 35... Qb8+ {[%emt 0:01:03]} 36. Kg1 {[%emt 0:01:11]} Rxe3 {[%emt 0:01:33]} 37. Nxd5 {[%emt 0:00:40]} (37. bxa6 $2 Rxh3 38. gxh3 Qg3+ 39. Kf1 Qf3+ 40. Ke1 Ne4 $19 (40... Qe3+ $2 41. Kf1 $19) (40... Qe3+ $2 41. Kf1 $19)) (37. Rf1 {looks sharper.} Qg3 38. Nxd5 Re1 39. Qc3) 37... Nxd5 {[%emt 0:01:55]} 38. Qxd5 {[%emt 0:00:13]} axb5 {[%emt 0:00:15]} 39. a6 {[%emt 0:03:41]} (39. Qd7 {simplifies} Qe8 40. Qxe8 Rxe8 41. Kf2) 39... Ra3 {[%emt 0:00:42]} 40. Rf1 {[%emt 0:00:54]} Rxa6 $2 {[%emt 0:00:41][%mdl 8192]} (40... Qe8 $2 41. Qb7 $18) (40... Qa7 $11) 41. Rxf7+ $18 {[%emt 0:20:16]} (41. Qxf7+ Kh6 $16) 41... Kh6 {[%emt 0:05:15] [#]} 42. Qd7 $1 {[%emt 0:02:12]} Qh8 {[%emt 0:02:45] [#]} 43. Qxb5 $2 {[%emt 0:03:10]} (43. g4 $1 $18 {[%cal Rg4g5] g5+ would kill now.} g5 44. h4 (44. Qxb5 $2 {too greedy.} Qxd4+ 45. Rf2 Ra1+ $19) 44... gxh4 45. Qd5 (45. Qxb5 Qxd4+ 46. Rf2 Qxg4+ 47. Rg2 Qd4+ 48. Rf2 Ra1+) (45. g5+ Kxg5 46. Qxb5+ Kg6 $18) 45... Ra1+ 46. Kf2 Ra2+ 47. Qxa2 Qxd4+ 48. Kf3 Qd1+ 49. Ke3 Qg1+ 50. Rf2 (50. Qf2 Qc1+ 51. Ke4 Qc6+ 52. Ke5 Qc3+ 53. Kd5 Qc4+ 54. Kd6 Qxg4 $18) 50... Qe1+ 51. Kf4) 43... Qxd4+ $11 {[%emt 0:01:10]} 44. Kh1 {[%emt 0:00:03]} 1/2-1/2

[Event "45th FIDE Olympiad 2024"]
[Site "Budapest"]
[Date "2024.09.14"]
[Round "4.23"]
[White "Momin Fayzan"]
[Black "Combs, Daniel"]
[Result "1-0"]
[ECO "E16"]
[WhiteElo "2064"]
[BlackElo "1688"]
[PlyCount "91"]
[EventDate "2024.09.05"]
[EventType "team-tourn"]
[EventCountry "HUN"]
[WhiteTeam "Pakistan"]
[BlackTeam "Guam"]
[WhiteTeamCountry "PAK"]
[BlackTeamCountry "GMA"]
[TimeControl "40/5400+30:1800+30"]

1. c4 Nf6 2. d4 e6 3. Nf3 Bb4+ 4. Bd2 Be7 5. g3 b6 6. Bg2 Bb7 7. Nc3 O-O 8. O-O d5 9. cxd5 exd5 10. Ne5 h6 11. Rc1 Nbd7 12. Qa4 Nxe5 13. dxe5 Nh7 14. Rfd1 c5 15. Be1 Qc7 16. Bxd5 Bxd5 17. Nxd5 Qxe5 18. Bc3 Qe6 19. Nc7 Qg6 20. Nxa8 Rxa8 21. Qd7 Qe6 22. Qxe6 fxe6 23. Rd7 Kf7 24. Rcd1 Nf6 25. Bxf6 Kxf6 26. b3 b5 27. Rb7 a6 28. Rdd7 Re8 29. f4 g6 30. e4 Kf7 31. Kf2 Kf8 32. e5 h5 33. Ke3 Kf7 34. Ke4 Kf8 35. Ra7 Kf7 36. Rxa6 Kf8 37. Rxe6 Kf7 38. Ra6 b4 39. Kd5 Rc8 40. Raa7 Re8 41. Rxe7+ Rxe7 42. Rxe7+ Kxe7 43. Kxc5 Ke6 44. Kxb4 Kf5 45. a4 Ke6 46. Kc5 1-0

[Event "45th FIDE Olympiad 2024"]
[Site "Budapest"]
[Date "2024.09.14"]
[Round "4.24"]
[White "Laurusas, Tomas"]
[Black "Gumularz, Szymon"]
[Result "1/2-1/2"]
[ECO "E11"]
[WhiteElo "2569"]
[BlackElo "2571"]
[Annotator "TA"]
[PlyCount "96"]
[EventDate "2024.09.05"]
[EventType "team-tourn"]
[EventCountry "HUN"]
[SourceTitle "playchess.com"]
[Source "ChessBase"]
[SourceQuality "1"]
[WhiteTeam "Lithuania"]
[BlackTeam "Poland"]
[WhiteTeamCountry "LTU"]
[BlackTeamCountry "POL"]
[TimeControl "40/5400+30:1800+30"]

{[%evp 9,96,18,18,6,21,16,24,14,22,12,12,16,24,14,22,16,8,8,16,0,28,0,24,0,24,14,13,18,40,8,13,0,0,0,-4,0,0,-8,0,-12,-9,-40,-7,-9,-12,-6,0,0,0,0,0,0,0,0,0,0,0,0,0,-10,0,-12,0,-47,-42,-42,-44,-48,-13,-13,0,0,0,-13,-8,-11,45,52,57,-14,-25,-116,-56,-104,-115,-104,-98,-98,-101]} 1. d4 {[%emt 0:00:02]} Nf6 {[%emt 0:00:09]} 2. c4 {[%emt 0:00:09]} e6 {[%emt 0:00:07]} 3. Nf3 {[%emt 0:00:07]} Bb4+ {[%emt 0:00:25]} 4. Nbd2 {[%emt 0:09:38]} Be7 {[%emt 0:00:14]} 5. e3 {[%emt 0:07:59]} O-O {[%emt 0:00:20]} 6. Be2 {[%emt 0:01:47]} d5 {[%emt 0:04:38]} 7. O-O {[%emt 0:01:45]} b6 {[%emt 0:00:07]} 8. b3 {[%emt 0:02:43] White has an edge.} Bb7 {[%emt 0:00:17]} 9. Bb2 {[%emt 0:00:29]} Nbd7 {[%emt 0:00:45]} 10. Rc1 {[%emt 0:02:34]} c5 {[%emt 0:00:32]} 11. cxd5 {[%emt 0:08:57]} Nxd5 {[%emt 0:00:55]} 12. a3 {[%emt 0:02:52]} a5 {[%emt 0:18:48]} 13. Bb5 {[%emt 0:05:13]} Nc7 {[%emt 0:14:18]} 14. Be2 {[%emt 0:13:38]} Nd5 {[%emt 0:02:35]} 15. Bb5 {[%emt 0:04:22]} Nc7 {[%emt 0:00:24]} 16. Bc4 {[%emt 0:00:49]} Rc8 {[%emt 0:08:50]} 17. Qe2 {[%emt 0:03:04]} cxd4 {[%emt 0:00:30]} 18. Nxd4 {[%emt 0:00:25]} Bc5 {[%emt 0:00:31]} 19. Rfd1 {[%emt 0:05:11]} (19. Bd3 {with more complications.} Qh4 20. Rfd1 Ne5 21. N2f3) 19... Qe7 {[%emt 0:01:24]} 20. Nc2 {[%emt 0:05:14]} Rfd8 {[%emt 0:02:23]} 21. Qg4 {[%emt 0:00:52][%csl Gb2][%cal Rg4g7] [#]} Nf6 {[%emt 0:02:14]} 22. Qh4 {[%emt 0:05:23]} h6 {[%emt 0:05:03]} 23. Be2 {[%emt 0:04:15]} Nce8 {[%emt 0:16:24]} 24. b4 {[%emt 0:03:20]} axb4 {[%emt 0:02:08]} 25. axb4 {[%emt 0:00:01]} Nd5 {[%emt 0:01:45]} (25... Ne4 $5 26. Qxe7 Bxe7 $17) 26. Qxe7 {[%emt 0:00:55]} Bxe7 {[%emt 0:00:03]} 27. b5 $1 {[%emt 0:02:29]} Nc3 {[%emt 0:07:01]} 28. Bxc3 {[%emt 0:00:06]} Rxc3 {[%emt 0:00:03]} 29. Nd4 {[%emt 0:00:30]} Rxc1 {[%emt 0:03:43]} 30. Rxc1 {[%emt 0:00:02]} Ba3 {[%emt 0:01:37] This pair of bishops is nice.} 31. Rc2 {[%emt 0:01:25]} Nd6 {[%emt 0:00:37]} 32. Nc6 {[%emt 0:01:03]} Ra8 {[%emt 0:01:01]} 33. h3 {[%emt 0:02:11]} Kf8 {[%emt 0:00:07]} 34. Nb3 {[%emt 0:02:01]} Ke8 {[%emt 0:02:17]} 35. Bd3 {[%emt 0:01:12]} Nc8 {[%emt 0:00:57]} 36. f4 {[%emt 0:03:39]} (36. Kf1 $11) 36... Bd6 $15 {[%emt 0:00:17]} 37. Kf2 {[%emt 0:01:41]} Ra3 {[%emt 0:00:38]} 38. Rb2 {[%emt 0:00:30]} Ne7 {[%emt 0:02:00]} 39. Be4 {[%emt 0:00:02]} Ra4 {[%emt 0:01:49]} 40. Bf3 {[%emt 0:00:56]} Nc8 {[%emt 0:01:36]} 41. Rc2 {[%emt 0:06:35]} Bxc6 {[%emt 0:09:37]} 42. bxc6 {[%emt 0:02:31]} Kd8 {[%emt 0:01:02]} (42... Rb4 $11 43. Nd4 Bc5) 43. Nd4 $14 {[%emt 0:04:15]} Na7 {[%emt 0:01:08] Inhibits Nb5.} 44. Rb2 {[%emt 0:08:14]} ({Better is} 44. f5 $14 e5 45. Ne2) 44... Kc7 $11 {[%emt 0:02:30][%cal Od6f4]} 45. Ke2 {[%emt 0:02:32]} (45. Rd2 $11 {keeps the balance.}) 45... Bc5 {[%emt 0:03:51]} (45... Bxf4 $1 $17 46. Nxe6+ fxe6 47. exf4 Rc4 (47... Rxf4 48. Rd2 $17) (47... Nxc6 $2 48. Rc2 $18)) 46. Rd2 {[%emt 0:02:51]} (46. Nb3 $1 $15 Rb4 (46... Nxc6 47. Rc2 $15) 47. Ra2 Nxc6 48. Nc1) 46... Bxd4 $17 {[%emt 0:02:50] Black is better.} 47. exd4 {[%emt 0:00:09] [#]} Nb5 $1 {[%emt 0:03:57]} (47... Nxc6 $2 {too greedy.} 48. Rc2 $16) 48. Ke3 {[%emt 0:00:06]} Nd6 {[%emt 0:04:47] Weighted Error Value: White=0.16 (very precise) /Black=0.08 (flawless) .  Mistake:       	White=4     	Black=2      Inaccurate:     	White=2     	Black=2      OK:         	White=15    	Black=17     Best:        	White=2     	Black=3      Strong:       	White=1     	Black=1} 1/2-1/2